Cogmind - Beta 13 @@@ ROGUE MODE // 2024.02.24 @ 19:21:06 Player: biznut Result: Destroyed by BZ-HTA(R) with Subdweller Machine Gun Performance ------------- Evolutions (0) 0 Regions Visited (2) 400 Robots Destroyed (15) 75 Value Destroyed (376) 376 Prototype IDs (0) 0 Alien Tech Used (0) 0 Bonus (0) 0 TOTAL SCORE: 851 Bonus ------- None Cogmind --------- Core Integrity 0/250 Matter 279/300 Energy 65/250 System Corruption 4% Temperature Cool (0) Movement Walking (190) Ox1 Location -10/Subcaves Parts ------- > --- POWER (1) -------- Ion Engine > --- PROPULSION (2) --- Aluminum Leg > --- UTILITY (2) ------ Medium Storage Unit > --- WEAPON (2) ------- Light Assault Rifle > --- INVENTORY (10) --- Ion Engine Flight Unit Heat Sink Small Matter Pod (50) Medium Matter Pod (1) Scrap Shield Peak State ------------ > --- POWER ------------ Ion Engine > --- PROPULSION ------- Aluminum Leg Aluminum Leg > --- UTILITY ---------- Medium Storage Unit Structural Scanner > --- WEAPON ----------- Light Assault Rifle Grenade Launcher > --- INVENTORY -------- Ion Engine Ion Engine Aluminum Leg Flight Unit Heat Sink Small Matter Pod Medium Matter Pod Scrap Shield [Rating: 8] Favorites ----------- Power Light Ion Engine Engine Light Ion Engine Propulsion Aluminum Leg Leg Aluminum Leg Wheel Wheel Flight Unit Flight Unit Utility Structural Scanner Device Structural Scanner Storage Small Matter Pod Weapon Medium Laser Energy Gun Medium Laser Ballistic Gun Light Assault Rifle Launcher Grenade Launcher Build | -11 -10 -10 ------- Run | Yrd Mat Sub Slots Evolved . | . . . Power . | . . . Propulsion . | . . . Utility . | . . . Weapon . | . . . Parts Attached 23 | 3 18 2 Power 5 | 1 3 1 Engine 5 | 1 3 1 Core . | . . . Reactor . | . . . Propulsion 8 | . 7 1 Treads . | . . . Leg 4 | . 3 1 Wheel 2 | . 2 . Hover . | . . . Flight 2 | . 2 . Utility 6 | . 6 . Device 4 | . 4 . Storage 2 | . 2 . Processor . | . . . Hackware . | . . . Protection . | . . . Artifact . | . . . Weapon 4 | 2 2 . Energy Gun 2 | 2 . . Energy Cannon . | . . . Ballistic Gun 1 | . 1 . Ballistic Cannon . | . . . Launcher 1 | . 1 . Special Weapon . | . . . Impact Weapon . | . . . Slashing Weapon . | . . . Piercing Weapon . | . . . Special Melee Weapon . | . . . Unidentified Prototypes . | . . . Parts Lost 9 | . 4 5 Power 2 | . 1 1 Propulsion 3 | . 1 2 Utility 1 | . . 1 Weapon 3 | . 2 1 Highest Loss Streak 5 | . 2 5 To Critical Strikes . | . . . Average Slot Usage (%) 77 | . 76 87 Engine 9 | . 8 12 Leg 16 | . 15 22 Wheel 4 | . 4 . Device 11 | . 11 12 Storage 7 | . 6 14 Energy Gun 10 | . 11 . Ballistic Gun 6 | . 5 14 Launcher 9 | . 9 12 Naked Turns . | . . . Heaviest Build 20 | 7 20 20 Greatest Support 20 | 3 20 20 Greatest Overweight (x) 3 | 2 2 3 Average Overweight (x) . | 1 . . Largest Inventory Capacity 10 | 5 10 10 Average Capacity 5 | 5 5 10 Most Carried 9 | 5 7 9 Average Carried 4 | 4 4 8 Final Capacity 10 | 5 10 10 Final Carried 7 | 5 7 7 Class Distribution -------------------- 100% | Mutant Dominant Class ---------------- Mutant | -10/Materials Mutant | -10/Subcaves Resources | -11 -10 -10 ----------- Run | Yrd Mat Sub Matter Collected 549 | 230 319 . Remotely . | . . . Salvage Created 419 | 49 370 . Parts 29 | 1 28 . Haulers Intercepted . | . . . Recyclers Shooed . | . . . Parts Field Recycled . | . . . Retrieved Matter . | . . . Parts Self-Destructed . | . . . Prevented . | . . . Kills | -11 -10 -10 ------- Run | Yrd Mat Sub Combat Hostiles Destroyed 8 | 1 7 . Guns 2 | 1 1 . AOE 6 | . 6 . Classes Destroyed 6 | 1 5 . Builder 2 | . 2 . Tunneler 1 | . 1 . Recycler 1 | . 1 . Operator 1 | . 1 . Watcher 2 | . 2 . Grunt 8 | 1 7 . Best Kill Streak 7 | 1 7 . Combat Bots Only 3 | 1 3 . Max Kills in Single Turn 4 | 1 4 . Gunslinging . | . . . Exploded 3 | . 3 . Melee . | . . . Uniques/NPCs Destroyed . | . . . Combat | -11 -10 -10 -------- Run | Yrd Mat Sub Hostile Shots Fired 76 | 14 43 19 Missed 21 | 8 10 3 Damage Taken 897 | 67 500 330 Core 260 | 44 88 128 Absorbed by Shields . | . . . Core Remaining (%) 82 | 82 . . Volleys Fired 27 | 6 20 1 Largest 2 | 2 2 1 Hottest 90 | 90 90 20 Shots Fired 49 | 12 36 1 Gun 39 | 12 26 1 Cannon . | . . . Launcher 10 | . 10 . Special . | . . . Kinetic 6 | . 5 1 Thermal 22 | 6 16 . Explosive 10 | . 10 . Electromagnetic 11 | 6 5 . Robot Hit Streak 5 | 4 5 5 Robot Miss Streak 2 | 1 2 . Penetration Max . | . . . Secondary Targets . | . . . Shots Hit Robots 28 | 9 18 1 Core Hits 24 | 2 22 . Critical Kills . | . . . Critical Parts Destroyed . | . . . Critical Strikes . | . . . Melee Attacks . | . . . Impact . | . . . Slashing . | . . . Piercing . | . . . Sneak Attacks . | . . . Combat Hostiles . | . . . Follow-up Attacks . | . . . Damage Inflicted 864 | 113 743 8 Guns 274 | 113 153 8 Cannons . | . . . Explosions 588 | . 588 . Melee . | . . . Ramming 2 | . 2 . Kinetic 24 | . 16 8 Thermal 187 | 62 125 . Explosive 588 | . 588 . Electromagnetic 63 | 51 12 . Impact . | . . . Slashing . | . . . Piercing . | . . . Highest Corruption 4 | . 4 4 Average Corruption 4 | . 4 4 Corruption Purged . | . . . Corruption Blocked . | . . . Effects 8 | . 8 . Message Errors 4 | . 4 . Matter Fused 3 | . 3 . Misfires 1 | . 1 . Overload Shots . | . . . Overflow Damage . | . . . Projectiles . | . . . Explosions . | . . . Melee . | . . . Knockbacks . | . . . Impact . | . . . Kinetic . | . . . Secondary . | . . . Self-Inflicted Damage 31 | . 31 . Shots 1 | . 1 . Rammed . | . . . Targets Rammed 2 | . 2 . Kicked 2 | . 2 . Crushed . | . . . Highest Temperature 208 | 198 208 . Average Temperature 64 | 103 48 . Received Heat Transfer 327 | 36 255 36 Siege Activations . | . . . Robots Corrupted . | . . . Combat Hostiles . | . . . Parts Fried . | . . . Impact Corruptions . | . . . Robots Melted . | . . . Combat Hostiles . | . . . Parts Melted 1 | . 1 . Heat Transferred 555 | 185 370 . Parts Sabotaged . | . . . Parts Stolen . | . . . Parts Stripped . | . . . Power Chain Reactions . | . . . Alert | -11 -10 -10 ------- Run | Yrd Mat Sub Peak Influence 231 | 20 231 . Initial 13 | . 13 . Average 50 | 10 63 . Maximum Alert Level 1 | . 1 . Low Security (%) 98 | 100 98 . Level 1 1 | . 1 . Level 2 . | . . . Level 3 . | . . . Level 4 . | . . . Level 5 . | . . . High Security . | . . . Max Security . | . . . Squads Dispatched 4 | . 4 . Investigation 2 | . 2 . Extermination . | . . . Reinforcement 2 | . 2 . Assault . | . . . Garrison . | . . . Intercept . | . . . Searches Triggered . | . . . Construction Impeded . | . . . Haulers Reinforced . | . . . Active Scanning Responses . | . . . Cargo Convoy Interrupts . | . . . Stealth | -11 -10 -10 --------- Run | Yrd Mat Sub Distress Signals . | . . . Communications Jammed . | . . . Distress Signals . | . . . Times Spotted 19 | 1 10 8 Peak Tracking Total 8 | 1 4 8 Tactical Retreats . | . . . Traps | -11 -10 -10 ------- Run | Yrd Mat Sub Traps Triggered . | . . . Indirectly . | . . . Trap Hack Attempts . | . . . Triggered . | . . . Disarmed . | . . . Reprogrammed . | . . . Reused . | . . . Traps Extracted . | . . . Installed . | . . . Triggered . | . . . Machines | -11 -10 -10 ---------- Run | Yrd Mat Sub Machines Disabled 2 | . 2 . Max in Single Turn 1 | . 1 . Machines Repaired . | . . . Machines Dismantled . | . . . Machines Sabotaged . | . . . Overloaded Fab Kills . | . . . Hacking | -11 -10 -10 --------- Run | Yrd Mat Sub Machines Accessed 3 | . 3 . Terminals 3 | . 3 . Fabricators . | . . . Repair Stations . | . . . Recycling Units . | . . . Scanalyzers . | . . . Garrison Access . | . . . Total Hacks 8 | . 8 . Successful 5 | . 5 . Failed 3 | . 3 . Catastrophic . | . . . Database Lockouts . | . . . Manual . | . . . Terminals 8 | . 8 . Fabricators . | . . . Repair Stations . | . . . Recycling Units . | . . . Scanalyzers . | . . . Garrison Access . | . . . Terminal Hacks 5 | . 5 . Record 3 | . 3 . Alert Level 1 | . 1 . Hauler Manifests 1 | . 1 . Fabricator Hacks . | . . . Repair Station Hacks . | . . . Recycling Unit Hacks . | . . . Scanalyzer . | . . . Garrison Access Hacks . | . . . Unauthorized Hacks . | . . . Terminals . | . . . Fabricators . | . . . Repair Stations . | . . . Recycling Units . | . . . Scanalyzers . | . . . Garrison Access . | . . . Data Cores Recovered . | . . . Used . | . . . Hacking Detections 2 | . 2 . Full Trace Events 2 | . 2 . Feedback Events . | . . . Feedback Blocked . | . . . Robot Schematics Acquired . | . . . Robots Built . | . . . Authchips . | . . . Time . | . . . Total Robot Build Rating . | . . . Part Schematics Acquired . | . . . Parts Built . | . . . Authchips . | . . . Time . | . . . Total Part Build Rating . | . . . Parts Repaired . | . . . Time . | . . . Parts Recycled . | . . . Recycled Matter . | . . . Retrieved Matter . | . . . Retrieved Components . | . . . Parts Scanalyzed . | . . . Part Schematics Acquired . | . . . Parts Damaged . | . . . Bothacking | -11 -10 -10 ------------ Run | Yrd Mat Sub Used RIF Installer . | . . . Robots Hacked . | . . . Non-combat . | . . . Combat . | . . . Robot Hacks Applied . | . . . Relay Couplers Released . | . . . Fabnet Peak Effective % . | . . . Robots Rewired . | . . . Allies Hacked . | . . . Hacks Repelled . | . . . Allies | -11 -10 -10 -------- Run | Yrd Mat Sub Total Allies . | . . . Largest Group . | . . . Highest-Rated Group . | . . . Highest-Rated Ally . | . . . Total Orders . | . . . Ally Attacks . | . . . Total Damage . | . . . Kills . | . . . Allies Corrupted . | . . . Allies Melted . | . . . Intel | -11 -10 -10 ------- Run | Yrd Mat Sub Robot Analysis Total . | . . . Derelict Logs Recovered . | . . . Drone Launches . | . . . Drone Recoveries . | . . . Exploration | -11 -10 -10 ------------- Run | Yrd Mat Sub Turns Passed 1260 | 293 900 67 Spaces Moved 885 | 233 603 49 Core 268 | 233 34 1 Treads . | . . . Legs 527 | . 479 48 Wheels 89 | . 89 . Hover . | . . . Flight 1 | . 1 . Fastest Speed 50 | 50 80 120 Average Speed 115 | 112 115 127 Slowest Speed 200 | 150 150 200 Overloaded Moves . | . . . Propulsion Burnouts . | . . . Robots Hopped . | . . . Cave-ins Triggered 1 | . 1 . Exploration Rate (%) 19 | 9 42 6 Regions Visited 2 Branch Regions 1 Pre-discovered Areas . | . . . Known Exits Taken . | . . . Unknown Exits Taken 2 | 1 1 . Scrap Searched . | . . . Spaces Dug 4 | . 4 . Terrain Destroyed 67 | . 67 . Melee . | . . . Projectile . | . . . AOE 67 | . 67 . Terrain Rammed . | . . . Walls Destroyed . | . . . Machines Disabled . | . . . Actions | -11 -10 -10 --------- Run | Yrd Mat Sub Total 1080 | 252 775 53 Wait 106 | 3 103 . Move 883 | 232 602 49 Hop . | . . . Pick Up 27 | 8 18 1 Fast Attach . | . . . Attach 21 | 3 16 2 Detach 4 | . 4 . Swap 2 | . 2 . Drop 8 | . 8 . Fire 27 | 6 20 1 Melee . | . . . Ram . | . . . Kick 2 | . 2 . Crush . | . . . Escape Stasis . | . . . Rewire . | . . . Trap . | . . . Miscellaneous . | . . . Route ------- -11/Scrapyard -10/Materials (discovered 2 exits: [*Mat] / [*Sub]) -10/Subcaves History --------- Turn | Location | Event 2 | -11/Scrapyard | Met Revision 17 79 | -11/Scrapyard | Discovered new exit (range 8) 294 | -11/Scrapyard | Entered Materials 327 | -10/Materials | Build established: Mutant 628 | -10/Materials | Discovered new exit (range 4) 744 | -10/Materials | Discovered new exit (range 9) 778 | -10/Materials | Crushed by falling debris 931 | -10/Materials | Core integrity fell below 50% 1194 | -10/Materials | Entered Subcaves 1245 | -10/Subcaves | Ambushed by swarm of Subdwellers 1249 | -10/Subcaves | Ambushed by Subdwellers from Twisted Machinery 1258 | -10/Subcaves | Core integrity fell below 20% 1261 | -10/Subcaves | Destroyed by BZ-HTA(R) with Subdweller Machine Gun Last Messages --------------- Machinery. 01248_ 46-TQR(R) emerges from the Twisted Machinery. 01248_ 8H-I08(R) emerges from the Twisted Machinery. 01248_ Aluminum Leg destroyed. 01249_ BZ-HTA(R) emerges from the Twisted Machinery. 01249_ N6-1HW(R) angrily emerges from the Twisted Machinery. 01250_ Grenade Launcher destroyed. 01251_ Structural Scanner destroyed. 01252_ Ion Engine destroyed. 01252_ 96-SCN(R) suffers critical hit (Destroy). 01252_ 96-SCN(R) destroyed. 01255_ HV Slug penetrates 4N-XM2(R). 01255_ 4N-XM2(R) destroyed. 01256_ Aluminum Leg destroyed. 01258_ MP-6M5(h) destroyed. [Achievement: First Step to Greatness] Map ----- +----------------------------------------------------+ | ?????????????????????????????????????????????????? | | ?????????????????????????????????????????????????? | | ?????????????????????????????????????????????????? | | ?????????????????????????????????????????????????? | | ?????????????????????????????????????????????????? | | ?????????????????????????????????????????????????? | | ?????????????????????????????????????????????????? | | ?????????????????????????????????????????????????? | | ?????????????????????????????????????????????????? | | ?????????????????????????????????????????????????? | | ?????????????????????????????????????????????????? | | ?????????????????????????????????????????????????? | | ?????????????????????????????????????????????????? | | ?????????????????????????????????????????????????? | | ??????#########????????"#####????????????????????? | | ################??????########??????###??????????? | | ######## ###?????#### ###??????####?????????? | | #####??### ##?????? ####????????? | | ######### ##????? ###????????? | | ###### ###### ##????????? | | ### ## ###### ###???????? | | ## ### =!#R" ###???????? | | #### R&R%!" ##??###??? | | ##### !%R%&[% ##??? | | ##### !##### ##??? | | ###### @ !##### ##??? | | ###?### ## ##????? ###??? | | #####??## ###########??????? ###??? | | #####???## ###########???????? ##???? | | ####?????### ##?????????????????? ##???? | | ## ?????? ####???????????????????? ##???? | | ???????? ###????????????????????? ??????? | | ????????????????????????????????????????? | | ?????????????????????????????????????? | | # ######?????????????????????????????????????? | | # ######?????????????????????????????????????? | | #### #?????????????????????????????????????????? | | #### ??????????????????????????????????????????? | | ??### ?????????????????????????????????????????? | | ??######?????????????????????????????????????????? | | ????####?????????????????????????????????????????? | | ?????????????????????????????????????????????????? | | ?????????????????????????????????????????????????? | | ?????????????????????????????????????????????????? | | ?????????????????????????????????????????????????? | | ?????????????????????????????????????????????????? | | ?????????????????????????????????????????????????? | | ?????????????????????????????????????????????????? | | ?????????????????????????????????????????????????? | | ?????????????????????????????????????????????????? | +----------------------------------------------------+ Best States ------------- Heat Dissipation 35 Energy Generation 10 Energy Capacity 250 Matter Stores 350 Matter Capacity 350 Sight Range 16 Terrain Scan Density 10 Evasion (%) 55 Item Schematics ----------------- None Robot Schematics ------------------ None Fabricated ------------ Nothing Alien Tech Used ----------------- None Achievements -------------- First Step to Greatness One Hack Too Far Shopping List Uninvited Guest Unlikely Earthworm Challenges ------------ None Game ------ Seed GlidesysDeuteriumClaws Manual? 0 Play Time 01:16:44 Cumulative 2.5 hours Start 2024.02.23 @ 13:04:59 End 2024.02.24 @ 19:21:06 Sessions 3 Manual Loads 0 Difficulty Rogue Special Mode None Game No. 2 Rogue 2 Adventurer 0 Explorer 0 Win Type - Total 0 Types 0/0/0/0/0/0/0/0/0 Lore% 0 Gallery% 1 Achievement% 2 Wizard Run 0 Options --------- Layout 2 ASCII 0 Keyboard 1 Movement Numpad Keybinds 0 Fullscreen 2 Font 32/SmallcapsGlow Map View 25x24 Zoom Use 54% Tactical HUD 1 Map Filters NONE Filters NONE Steam 1 RUN: 8fd4ec87-a39e-4357-9014-c349dd2113d7